[Event "EYTCC U12 Girls 2019"]
[Site "Pardubice"]
[Date "2019.07.16"]
[Round "6.23"]
[White "Siekanska, Maria"]
[Black "Mikheeva, Galina"]
[Result "0-1"]
[ECO "D35"]
[WhiteElo "1561"]
[BlackElo "1792"]
[Annotator "NA"]
[PlyCount "80"]
[EventDate "2019.07.11"]
[EventType "swiss"]
[EventCountry "CZE"]
[SourceTitle "playchess.com"]
[Source "ChessBase"]
[SourceQuality "1"]
[WhiteTeam "Poland"]
[BlackTeam "Russia"]
[WhiteTeamCountry "POL"]
[BlackTeamCountry "RUS"]
[TimeControl "40/5400+30:1800+30"]

1. d4 {[%emt 0:00:00]} Nf6 {[%emt 0:00:00]} 2. c4 {[%emt 0:00:00]} e6 {[%emt 0:00:00]} 3. Nc3 {[%emt 0:00:00]} d5 {[%emt 0:00:00]} 4. cxd5 {[%emt 0:00:00]} exd5 {[%emt 0:00:04]} 5. Bg5 {[%emt 0:00:06]} Nbd7 {[%emt 0:01:31]} 6. e3 {[%emt 0:00:18]} c6 {[%emt 0:00:22]} 7. Bd3 {[%emt 0:00:18]} Be7 {[%emt 0:01:24]} 8. Nge2 {[%emt 0:00:41]} Nh5 {[%emt 0:02:01]} 9. Bxe7 {[%emt 0:00:09]} Qxe7 {[%emt 0:00:09]} 10. O-O {[%emt 0:01:22]} Ndf6 {[%emt 0:03:28]} 11. a3 {[%emt 0:05:09]} a5 {[%emt 0:01:45]} 12. Rb1 {[%emt 0:03:11]} O-O {[%emt 0:02:41]} 13. b4 {[%emt 0:02:05]} axb4 {[%emt 0:00:14]} 14. axb4 {[%emt 0:00:13]} g6 {[%emt 0:03:09]} 15. Na4 {[%emt 0:08:23]} Ng7 {[%emt 0:02:06]} 16. Nb6 {[%emt 0:02:07]} Ra3 {[%emt 0:02:02]} 17. Nxc8 {[%emt 0:02:24]} Rxc8 {[%emt 0:00:42]} 18. Nf4 {[%emt 0:01:48]} Nge8 {[%emt 0:13:21]} 19. Qc1 {[%emt 0:14:51]} Rca8 {[%emt 0:00:55]} 20. Rd1 {[%emt 0:00:25]} Nd6 {[%emt 0:18:32]} 21. b5 {[%emt 0:13:04]} cxb5 {[%emt 0:14:00]} 22. Bxb5 {[%emt 0:01:53]} Ra2 {[%emt 0:08:31]} 23. Rd2 {[%emt 0:04:16]} Rxd2 {[%emt 0:01:12]} 24. Qxd2 {[%emt 0:00:27]} Nxb5 {[%emt 0:00:12]} 25. h4 {[%emt 0:00:50]} Nd6 {[%emt 0:00:43]} 26. Qe2 {[%emt 0:01:32]} Nf5 {[%emt 0:00:49]} 27. Qb5 {[%emt 0:00:40]} Rd8 {[%emt 0:07:51]} 28. g3 {[%emt 0:00:21]} Rd7 {[%emt 0:00:26]} 29. Qd3 {[%emt 0:00:58]} Qe4 {[%emt 0:01:05]} 30. Qb5 {[%emt 0:01:29]} Kg7 {[%emt 0:01:28]} 31. h5 {[%emt 0:00:13]} g5 {[%emt 0:01:08]} 32. Nd3 {[%emt 0:00:50]} Rc7 {[%emt 0:05:24]} 33. Nc5 {[%emt 0:01:00]} Qe7 {[%emt 0:01:46]} 34. Nxb7 {[%emt 0:01:08]} Nxg3 {[%emt 0:02:57]} 35. Nc5 {[%emt 0:02:04]} Ngxh5 {[%emt 0:01:20]} 36. Qe2 {[%emt 0:01:08]} Nf4 {[%emt 0:02:11]} 37. Qf3 {[%emt 0:01:18]} Ng6 {[%emt 0:01:04]} 38. Rb8 {[%emt 0:03:54]} Ne4 {[%emt 0:00:27]} 39. Nd3 {[%emt 0:01:37]} Rb7 {[%emt 0:00:51]} 40. Rxb7 {[%emt 0:00:27]} Qxb7 {[%emt 0:00:05]} 0-1

[Event "EYTCC U12 Girls 2019"]
[Site "Pardubice"]
[Date "2019.07.16"]
[Round "6.24"]
[White "Goriachkina, Oksana"]
[Black "Szopa, Emilia"]
[Result "0-1"]
[ECO "A46"]
[WhiteElo "1417"]
[BlackElo "1415"]
[Annotator "NA"]
[PlyCount "124"]
[EventDate "2019.07.11"]
[EventType "swiss"]
[EventCountry "CZE"]
[SourceTitle "playchess.com"]
[Source "ChessBase"]
[SourceQuality "1"]
[WhiteTeam "Russia"]
[BlackTeam "Poland"]
[WhiteTeamCountry "RUS"]
[BlackTeamCountry "POL"]
[TimeControl "40/5400+30:1800+30"]

1. d4 {[%emt 0:00:00]} Nf6 {[%emt 0:00:00]} 2. Nf3 {[%emt 0:00:23]} d5 {[%emt 0:01:47]} 3. c4 {[%emt 0:00:30]} Bf5 {[%emt 0:01:25]} 4. Nc3 {[%emt 0:00:54]} e6 {[%emt 0:01:55]} 5. Bf4 {[%emt 0:00:38]} a6 {[%emt 0:00:32]} 6. e3 {[%emt 0:00:16]} Be7 {[%emt 0:04:38]} 7. Be2 {[%emt 0:01:02]} O-O {[%emt 0:03:04]} 8. O-O {[%emt 0:00:46]} Nbd7 {[%emt 0:05:30]} 9. cxd5 {[%emt 0:00:18]} Nxd5 {[%emt 0:01:19]} 10. Nxd5 {[%emt 0:00:18]} exd5 {[%emt 0:00:38]} 11. Rc1 {[%emt 0:00:27]} c6 {[%emt 0:02:32]} 12. Qb3 {[%emt 0:00:35]} Qb6 {[%emt 0:08:48]} 13. Qxb6 {[%emt 0:01:14]} Nxb6 {[%emt 0:00:10]} 14. a3 {[%emt 0:01:03]} Na4 {[%emt 0:06:39]} 15. b4 {[%emt 0:00:41]} a5 {[%emt 0:01:14]} 16. Bd1 {[%emt 0:09:41]} axb4 {[%emt 0:01:04]} 17. axb4 {[%emt 0:00:22]} Bd3 {[%emt 0:00:12]} 18. Re1 {[%emt 0:01:39]} Bxb4 {[%emt 0:00:14]} 19. Bxa4 {[%emt 0:00:22]} Rxa4 {[%emt 0:00:31]} 20. Ra1 {[%emt 0:00:34]} Rfa8 {[%emt 0:00:51]} 21. Rxa4 {[%emt 0:00:37]} Rxa4 {[%emt 0:00:12]} 22. Rc1 {[%emt 0:00:23]} Be2 {[%emt 0:02:37]} 23. Ne5 {[%emt 0:01:42]} f6 {[%emt 0:01:22]} 24. Nd7 {[%emt 0:02:44]} Bd2 {[%emt 0:01:11]} 25. Rb1 {[%emt 0:02:48]} Bd3 {[%emt 0:00:48]} 26. Rd1 {[%emt 0:02:03]} Bc2 {[%emt 0:00:10]} 27. Rf1 {[%emt 0:00:23]} b5 {[%emt 0:00:13]} 28. Nc5 {[%emt 0:03:55]} Ra2 {[%emt 0:05:23]} 29. h3 {[%emt 0:01:08]} b4 {[%emt 0:00:32]} 30. Bg3 {[%emt 0:02:35]} Bc3 {[%emt 0:02:06]} 31. Rc1 {[%emt 0:01:56]} Ra1 {[%emt 0:00:23]} 32. Rxa1 {[%emt 0:00:30]} Bxa1 {[%emt 0:00:08]} 33. Kf1 {[%emt 0:01:01]} b3 {[%emt 0:00:51]} 34. Nxb3 {[%emt 0:00:10]} Bxb3 {[%emt 0:00:05]} 35. Ke2 {[%emt 0:00:08]} Bc3 {[%emt 0:00:17]} 36. Kd3 {[%emt 0:00:55]} Bb4 {[%emt 0:00:10]} 37. Ke2 {[%emt 0:00:14]} Kf7 {[%emt 0:00:18]} 38. Bh2 {[%emt 0:01:12]} Ke6 {[%emt 0:00:08]} 39. f4 {[%emt 0:00:48]} Kf5 {[%emt 0:00:35]} 40. g4+ {[%emt 0:00:56]} Ke4 {[%emt 0:00:14]} 41. f5 {[%emt 0:30:30]} Be7 {[%emt 0:30:59]} 42. Bf4 {[%emt 0:00:44]} c5 {[%emt 0:00:12]} 43. dxc5 {[%emt 0:00:35]} Bxc5 {[%emt 0:00:15]} 44. h4 {[%emt 0:09:38]} Bc4+ {[%emt 0:00:24]} 45. Kd2 {[%emt 0:02:57]} Bb5 {[%emt 0:00:55]} 46. h5 {[%emt 0:01:12]} d4 {[%emt 0:01:55]} 47. exd4 {[%emt 0:00:59]} Bb4+ {[%emt 0:00:16]} 48. Kc2 {[%emt 0:00:08]} Kxf4 {[%emt 0:00:04]} 49. Kb3 {[%emt 0:01:54]} Bd6 {[%emt 0:00:17]} 50. Kc2 {[%emt 0:01:21]} Kxg4 {[%emt 0:00:07]} 51. Kd2 {[%emt 0:04:17]} Kxh5 {[%emt 0:00:37]} 52. Ke3 {[%emt 0:00:12]} Bc6 {[%emt 0:00:35]} 53. Kf2 {[%emt 0:16:52]} Kg4 {[%emt 0:00:26]} 54. d5 {[%emt 0:03:19]} Bxd5 {[%emt 0:00:12]} 55. Kf1 {[%emt 0:04:06]} Bc5 {[%emt 0:00:37]} 56. Ke2 {[%emt 0:00:23]} h5 {[%emt 0:00:08]} 57. Kd3 {[%emt 0:03:38]} h4 {[%emt 0:00:26]} 58. Ke2 {[%emt 0:02:45]} h3 {[%emt 0:00:09]} 59. Kf1 {[%emt 0:00:54]} Bf3 {[%emt 0:00:14]} 60. Ke1 {[%emt 0:00:15]} Be3 {[%emt 0:00:10]} 61. Kf1 {[%emt 0:08:23]} h2 {[%emt 0:00:07]} 62. Ke1 {[%emt 0:03:56]} h1=R# {[%emt 0:00:15]} 0-1

[Event "EYTCC U12 Girls 2019"]
[Site "Pardubice"]
[Date "2019.07.17"]
[Round "7.17"]
[White "Mikheeva, Galina"]
[Black "Mellor, Jessica"]
[Result "1-0"]
[ECO "C56"]
[WhiteElo "1792"]
[BlackElo "1663"]
[Annotator "NA"]
[PlyCount "69"]
[EventDate "2019.07.11"]
[EventType "swiss"]
[EventCountry "CZE"]
[SourceTitle "playchess.com"]
[Source "ChessBase"]
[SourceQuality "1"]
[WhiteTeam "Russia"]
[BlackTeam "England"]
[WhiteTeamCountry "RUS"]
[BlackTeamCountry "ENG"]
[TimeControl "40/5400+30:1800+30"]

1. e4 {[%emt 0:00:00]} e5 {[%emt 0:00:00]} 2. Nf3 {[%emt 0:00:00]} Nc6 {[%emt 0:00:00]} 3. d4 {[%emt 0:00:00]} exd4 {[%emt 0:00:16]} 4. Bc4 {[%emt 0:00:23]} Nf6 {[%emt 0:01:00]} 5. O-O {[%emt 0:00:14]} Nxe4 {[%emt 0:15:43]} 6. Re1 {[%emt 0:00:08]} d5 {[%emt 0:00:56]} 7. Bxd5 {[%emt 0:00:10]} Qxd5 {[%emt 0:02:18]} 8. Nc3 {[%emt 0:00:05]} Qd8 {[%emt 0:07:50]} 9. Rxe4+ {[%emt 0:02:57]} Be7 {[%emt 0:05:29]} 10. Nb5 {[%emt 0:06:52]} a6 {[%emt 0:09:37]} 11. Nbxd4 {[%emt 0:01:06]} O-O {[%emt 0:11:16]} 12. Bf4 {[%emt 0:00:51]} Bd6 {[%emt 0:06:18]} 13. Nxc6 {[%emt 0:03:22]} bxc6 {[%emt 0:01:15]} 14. b3 {[%emt 0:12:26]} Bxf4 {[%emt 0:04:45]} 15. Rxf4 {[%emt 0:00:23]} Be6 {[%emt 0:03:03]} 16. Qxd8 {[%emt 0:07:20]} Raxd8 {[%emt 0:01:41]} 17. Ra4 {[%emt 0:02:13]} Bc8 {[%emt 0:00:42]} 18. Re1 {[%emt 0:03:23]} f6 {[%emt 0:03:19]} 19. h3 {[%emt 0:03:46]} Kf7 {[%emt 0:10:20]} 20. Nd4 {[%emt 0:02:40]} Rd6 {[%emt 0:00:51]} 21. Rc4 {[%emt 0:02:57]} Bd7 {[%emt 0:02:12]} 22. c3 {[%emt 0:03:59]} Re8 {[%emt 0:02:04]} 23. Rb1 {[%emt 0:02:01]} Rb8 {[%emt 0:02:24]} 24. b4 {[%emt 0:03:11]} g6 {[%emt 0:03:55]} 25. a4 {[%emt 0:02:01]} Rb7 {[%emt 0:03:18]} 26. Rc5 {[%emt 0:03:46]} Rd5 {[%emt 0:01:52]} 27. Nb3 {[%emt 0:02:31]} Rb8 {[%emt 0:00:32]} 28. Rxd5 {[%emt 0:05:23]} cxd5 {[%emt 0:00:07]} 29. Nc5 {[%emt 0:00:05]} Bf5 {[%emt 0:00:50]} 30. Rd1 {[%emt 0:01:07]} a5 {[%emt 0:00:31]} 31. g4 {[%emt 0:03:37]} Be6 {[%emt 0:00:31]} 32. bxa5 {[%emt 0:01:29]} Ra8 {[%emt 0:00:32]} 33. a6 {[%emt 0:00:08]} c6 {[%emt 0:00:28]} 34. Rb1 {[%emt 0:00:22]} Ke8 {[%emt 0:00:31]} 35. Nxe6 {[%emt 0:00:33]} 1-0

[Event "EYTCC U12 Girls 2019"]
[Site "Pardubice"]
[Date "2019.07.17"]
[Round "7.18"]
[White "Pert, Nina"]
[Black "Goriachkina, Oksana"]
[Result "1/2-1/2"]
[ECO "B15"]
[WhiteElo "1452"]
[BlackElo "1417"]
[Annotator "NA"]
[PlyCount "85"]
[EventDate "2019.07.11"]
[EventType "swiss"]
[EventCountry "CZE"]
[SourceTitle "playchess.com"]
[Source "ChessBase"]
[SourceQuality "1"]
[WhiteTeam "England"]
[BlackTeam "Russia"]
[WhiteTeamCountry "ENG"]
[BlackTeamCountry "RUS"]
[TimeControl "40/5400+30:1800+30"]

1. e4 {[%emt 0:00:00]} c6 {[%emt 0:00:00]} 2. d4 {[%emt 0:00:00]} d5 {[%emt 0:00:00]} 3. Nc3 {[%emt 0:00:00]} dxe4 {[%emt 0:00:00]} 4. Nxe4 {[%emt 0:00:08]} Nf6 {[%emt 0:00:11]} 5. Nxf6+ {[%emt 0:00:18]} exf6 {[%emt 0:00:12]} 6. c3 {[%emt 0:00:38]} Bd6 {[%emt 0:00:34]} 7. Bd3 {[%emt 0:00:50]} O-O {[%emt 0:02:19]} 8. Ne2 {[%emt 0:01:45]} Be6 {[%emt 0:01:42]} 9. Qc2 {[%emt 0:00:34]} h6 {[%emt 0:04:26]} 10. O-O {[%emt 0:01:40]} Nd7 {[%emt 0:00:49]} 11. Ng3 {[%emt 0:04:49]} Qc7 {[%emt 0:01:11]} 12. Bd2 {[%emt 0:02:08]} Rfe8 {[%emt 0:00:38]} 13. Qc1 {[%emt 0:10:20]} Nf8 {[%emt 0:16:03]} 14. Bxh6 {[%emt 0:09:57]} gxh6 {[%emt 0:07:30]} 15. Nh5 {[%emt 0:01:58]} Bxh2+ {[%emt 0:14:28]} 16. Kh1 {[%emt 0:00:07]} Bf4 {[%emt 0:01:14]} 17. Nxf4 {[%emt 0:00:17]} Qa5 {[%emt 0:06:39]} 18. d5 {[%emt 0:03:42]} Bxd5 {[%emt 0:00:24]} 19. b4 {[%emt 0:00:13]} Qd8 {[%emt 0:03:56]} 20. Rd1 {[%emt 0:06:20]} Qc8 {[%emt 0:06:37]} 21. f3 {[%emt 0:03:38]} Re5 {[%emt 0:11:11]} 22. c4 {[%emt 0:07:07]} Be6 {[%emt 0:00:57]} 23. Re1 {[%emt 0:02:22]} Rg5 {[%emt 0:02:10]} 24. Kg1 {[%emt 0:07:56]} a5 {[%emt 0:01:31]} 25. Kf2 {[%emt 0:02:43]} Bf5 {[%emt 0:01:10]} 26. Bxf5 {[%emt 0:06:08]} Qxf5 {[%emt 0:00:27]} 27. g4 {[%emt 0:01:35]} Qd7 {[%emt 0:00:51]} 28. Qc3 {[%emt 0:00:44]} Qd6 {[%emt 0:00:31]} 29. Nh5 {[%emt 0:02:08]} Nh7 {[%emt 0:01:19]} 30. Kg2 {[%emt 0:00:38]} axb4 {[%emt 0:00:20]} 31. Qb2 {[%emt 0:00:59]} Rd8 {[%emt 0:00:33]} 32. Rad1 {[%emt 0:02:10]} Qc7 {[%emt 0:00:08]} 33. Nxf6+ {[%emt 0:00:23]} Nxf6 {[%emt 0:00:07]} 34. Qxf6 {[%emt 0:00:14]} Rf8 {[%emt 0:02:27]} 35. Re7 {[%emt 0:01:04]} Qa5 {[%emt 0:00:48]} 36. Rxf7 {[%emt 0:03:05]} Rxf7 {[%emt 0:00:57]} 37. Rd8+ {[%emt 0:00:06]} Qxd8 {[%emt 0:00:09]} 38. Qxd8+ {[%emt 0:00:04]} Kg7 {[%emt 0:00:21]} 39. Qd4+ {[%emt 0:00:56]} Kg8 {[%emt 0:00:20]} 40. c5 {[%emt 0:00:18]} Rfg7 {[%emt 0:01:32]} 41. Qxb4 {[%emt 0:31:50]} h5 {[%emt 0:30:22]} 42. Kg3 {[%emt 0:00:26]} hxg4 {[%emt 0:00:15]} 43. fxg4 {[%emt 0:00:05]} 1/2-1/2

[Event "EYTCC U12 Girls 2019"]
[Site "Pardubice"]
[Date "2019.07.17"]
[Round "7.19"]
[White "Buyuk, Ecrin Efsa"]
[Black "Siekanska, Maria"]
[Result "0-1"]
[ECO "B40"]
[WhiteElo "1592"]
[BlackElo "1561"]
[Annotator "NA"]
[PlyCount "68"]
[EventDate "2019.07.11"]
[EventType "swiss"]
[EventCountry "CZE"]
[SourceTitle "playchess.com"]
[Source "ChessBase"]
[SourceQuality "1"]
[WhiteTeam "Turkey"]
[BlackTeam "Poland"]
[WhiteTeamCountry "TUR"]
[BlackTeamCountry "POL"]
[TimeControl "40/5400+30:1800+30"]

1. e4 {[%emt 0:00:00]} c5 {[%emt 0:00:00]} 2. Nf3 {[%emt 0:00:00]} e6 {[%emt 0:00:00]} 3. g3 {[%emt 0:00:00]} d5 {[%emt 0:02:34]} 4. exd5 {[%emt 0:00:37]} exd5 {[%emt 0:00:17]} 5. Bg2 {[%emt 0:01:00]} Nf6 {[%emt 0:01:06]} 6. O-O {[%emt 0:01:26]} Be7 {[%emt 0:00:25]} 7. d4 {[%emt 0:01:07]} O-O {[%emt 0:01:45]} 8. Nc3 {[%emt 0:02:52]} Nc6 {[%emt 0:02:18]} 9. h3 {[%emt 0:09:13]} h6 {[%emt 0:05:49]} 10. Be3 {[%emt 0:02:17]} c4 {[%emt 0:05:55]} 11. Ne5 {[%emt 0:03:57]} Bb4 {[%emt 0:07:24]} 12. Ne2 {[%emt 0:21:35]} Re8 {[%emt 0:10:22]} 13. Nf4 {[%emt 0:02:38]} Bf5 {[%emt 0:04:00]} 14. Nh5 {[%emt 0:11:06]} Nxe5 {[%emt 0:09:25]} 15. dxe5 {[%emt 0:00:17]} Nxh5 {[%emt 0:01:47]} 16. Qxh5 {[%emt 0:00:11]} Bxc2 {[%emt 0:01:45]} 17. Qg4 {[%emt 0:02:12]} Kh8 {[%emt 0:16:20]} 18. Qd4 {[%emt 0:01:20]} Rc8 {[%emt 0:06:09]} 19. Qxd5 {[%emt 0:06:27]} Qxd5 {[%emt 0:00:11]} 20. Bxd5 {[%emt 0:00:06]} Rxe5 {[%emt 0:00:27]} 21. Bxb7 {[%emt 0:00:24]} Rce8 {[%emt 0:02:31]} 22. Rfc1 {[%emt 0:00:57]} Bd3 {[%emt 0:01:12]} 23. Ba6 {[%emt 0:02:28]} Rxe3 {[%emt 0:05:58]} 24. fxe3 {[%emt 0:00:09]} Rxe3 {[%emt 0:00:57]} 25. Bxc4 {[%emt 0:05:30]} Be4 {[%emt 0:02:55]} 26. Kf2 {[%emt 0:09:27]} Bc5 {[%emt 0:01:41]} 27. Kf1 {[%emt 0:06:04]} Rxg3 {[%emt 0:05:08]} 28. Bxf7 {[%emt 0:01:30]} Bd3+ {[%emt 0:00:26]} 29. Ke1 {[%emt 0:01:01]} Be3 {[%emt 0:01:03]} 30. Rc8+ {[%emt 0:00:13]} Kh7 {[%emt 0:00:03]} 31. Bg8+ {[%emt 0:00:55]} Kg6 {[%emt 0:00:05]} 32. Rc6+ {[%emt 0:01:04]} Kg5 {[%emt 0:00:20]} 33. Rc5+ {[%emt 0:00:34]} Bxc5 {[%emt 0:00:01]} 34. Kd2 {[%emt 0:00:07]} Bb4+ {[%emt 0:00:02]} 0-1

[Event "EYTCC U12 Girls 2019"]
[Site "Pardubice"]
[Date "2019.07.17"]
[Round "7.20"]
[White "Szopa, Emilia"]
[Black "Alagoz, Zumra Meryem"]
[Result "0-1"]
[ECO "B20"]
[WhiteElo "1415"]
[BlackElo "1310"]
[Annotator "NA"]
[PlyCount "80"]
[EventDate "2019.07.11"]
[EventType "swiss"]
[EventCountry "CZE"]
[SourceTitle "playchess.com"]
[Source "ChessBase"]
[SourceQuality "1"]
[WhiteTeam "Poland"]
[BlackTeam "Turkey"]
[WhiteTeamCountry "POL"]
[BlackTeamCountry "TUR"]
[TimeControl "40/5400+30:1800+30"]

1. e4 {[%emt 0:00:00]} c5 {[%emt 0:00:00]} 2. g3 {[%emt 0:00:00]} d6 {[%emt 0:00:11]} 3. Bg2 {[%emt 0:00:00]} Nf6 {[%emt 0:00:26]} 4. Ne2 {[%emt 0:00:15]} Nc6 5. O-O {[%emt 0:01:00]} g6 {[%emt 0:00:49]} 6. c3 {[%emt 0:00:58]} Bg7 {[%emt 0:01:34]} 7. d4 {[%emt 0:02:49]} O-O {[%emt 0:01:30]} 8. Nd2 {[%emt 0:07:13]} cxd4 {[%emt 0:01:32]} 9. cxd4 {[%emt 0:00:24]} Qd7 {[%emt 0:06:11]} 10. f4 {[%emt 0:06:40]} Rb8 {[%emt 0:08:04]} 11. d5 {[%emt 0:07:42]} Nb4 {[%emt 0:06:20]} 12. Qb3 {[%emt 0:03:54]} Na6 {[%emt 0:06:42]} 13. e5 {[%emt 0:12:13]} Ne8 {[%emt 0:08:40]} 14. e6 {[%emt 0:10:08]} fxe6 {[%emt 0:05:19]} 15. dxe6 {[%emt 0:00:35]} Qd8 {[%emt 0:03:06]} 16. Bh3 {[%emt 0:04:41]} Nc5 {[%emt 0:03:14]} 17. Qe3 {[%emt 0:01:36]} Qb6 {[%emt 0:05:23]} 18. Kh1 {[%emt 0:09:02]} Na4 {[%emt 0:05:20]} 19. Qxb6 {[%emt 0:09:14]} Nxb6 {[%emt 0:00:18]} 20. f5 {[%emt 0:03:24]} gxf5 {[%emt 0:03:04]} 21. Rxf5 {[%emt 0:03:01]} Rxf5 {[%emt 0:00:22]} 22. Bxf5 {[%emt 0:00:09]} Nd5 {[%emt 0:07:19]} 23. Nf3 {[%emt 0:01:54]} Nec7 {[%emt 0:03:38]} 24. Ned4 {[%emt 0:01:37]} b5 {[%emt 0:07:19]} 25. Bd2 {[%emt 0:04:40]} Bb7 {[%emt 0:02:18]} 26. Kg1 {[%emt 0:00:10]} Rf8 {[%emt 0:03:03]} 27. Be4 {[%emt 0:01:19]} Ba8 {[%emt 0:02:13]} 28. Rc1 {[%emt 0:02:05]} b4 {[%emt 0:05:09]} 29. b3 {[%emt 0:03:24]} a5 {[%emt 0:02:33]} 30. Nc6 {[%emt 0:01:00]} Bxc6 {[%emt 0:01:26]} 31. Rxc6 {[%emt 0:00:07]} Bc3 {[%emt 0:00:59]} 32. Bc1 {[%emt 0:01:42]} Rf6 {[%emt 0:00:49]} 33. Ng5 {[%emt 0:01:34]} h6 {[%emt 0:00:30]} 34. Bxd5 {[%emt 0:00:44]} Nxd5 {[%emt 0:00:27]} 35. Nf7 {[%emt 0:00:37]} Bd4+ {[%emt 0:00:31]} 36. Kg2 {[%emt 0:00:08]} Rxe6 {[%emt 0:00:26]} 37. Nxh6+ {[%emt 0:00:11]} Kh7 {[%emt 0:00:09]} 38. Nf5 {[%emt 0:00:26]} Bc5 {[%emt 0:00:26]} 39. Ra6 {[%emt 0:00:49]} Re2+ {[%emt 0:00:25]} 40. Kh3 {[%emt 0:00:21]} Rxa2 {[%emt 0:00:21]} 0-1

[Event "EYTCC U12 Girls 2019"]
[Site "Pardubice"]
[Date "2019.07.17"]
[Round "7.21"]
[White "Havelkova, Beata"]
[Black "Ivanova, Dilyana"]
[Result "0-1"]
[ECO "B22"]
[WhiteElo "1316"]
[BlackElo "1734"]
[Annotator "NA"]
[PlyCount "92"]
[EventDate "2019.07.11"]
[EventType "swiss"]
[EventCountry "CZE"]
[SourceTitle "playchess.com"]
[Source "ChessBase"]
[SourceQuality "1"]
[WhiteTeam "Czech Republic"]
[BlackTeam "Bulgaria"]
[WhiteTeamCountry "CZE"]
[BlackTeamCountry "BUL"]
[TimeControl "40/5400+30:1800+30"]

1. e4 {[%emt 0:00:00]} c5 {[%emt 0:00:00]} 2. c3 {[%emt 0:00:00]} d5 {[%emt 0:00:00]} 3. exd5 {[%emt 0:00:00]} Qxd5 {[%emt 0:00:00]} 4. d4 {[%emt 0:00:00]} Nc6 {[%emt 0:00:00]} 5. Nf3 {[%emt 0:00:01]} e5 {[%emt 0:00:12]} 6. Nxe5 {[%emt 0:07:43]} Nxe5 {[%emt 0:01:42]} 7. dxe5 {[%emt 0:00:13]} Qxe5+ {[%emt 0:00:52]} 8. Be3 {[%emt 0:03:04]} a6 {[%emt 0:08:59]} 9. Qf3 {[%emt 0:05:16]} Bd6 {[%emt 0:03:49]} 10. Nd2 {[%emt 0:02:45]} Nf6 {[%emt 0:11:08]} 11. Nc4 {[%emt 0:01:16]} Qe7 {[%emt 0:03:00]} 12. Nxd6+ {[%emt 0:00:26]} Qxd6 {[%emt 0:00:07]} 13. Bc4 {[%emt 0:01:43]} O-O {[%emt 0:02:39]} 14. O-O {[%emt 0:00:45]} Bg4 {[%emt 0:04:16]} 15. Qf4 {[%emt 0:08:39]} Qxf4 {[%emt 0:04:28]} 16. Bxf4 {[%emt 0:00:10]} b5 {[%emt 0:02:38]} 17. Bd3 {[%emt 0:05:07]} Rad8 {[%emt 0:03:02]} 18. Bc2 {[%emt 0:00:30]} Rfe8 {[%emt 0:03:59]} 19. h3 {[%emt 0:02:08]} Be2 {[%emt 0:05:58]} 20. Rfe1 {[%emt 0:01:00]} Nd5 {[%emt 0:06:12]} 21. Bg3 {[%emt 0:01:01]} g5 {[%emt 0:11:39]} 22. a4 {[%emt 0:01:55]} b4 {[%emt 0:01:46]} 23. cxb4 {[%emt 0:02:59]} Nxb4 {[%emt 0:00:34]} 24. Bd1 {[%emt 0:03:16]} Rd2 {[%emt 0:02:23]} 25. Bxe2 {[%emt 0:03:59]} Rexe2 {[%emt 0:00:23]} 26. Rxe2 {[%emt 0:00:37]} Rxe2 {[%emt 0:00:07]} 27. b3 {[%emt 0:01:03]} f5 {[%emt 0:07:06]} 28. f4 {[%emt 0:03:04]} h6 {[%emt 0:07:18]} 29. fxg5 {[%emt 0:01:26]} hxg5 {[%emt 0:00:03]} 30. Bd6 {[%emt 0:04:32]} Rc2 {[%emt 0:02:41]} 31. Re1 {[%emt 0:01:56]} Nd3 {[%emt 0:03:15]} 32. Re8+ {[%emt 0:04:28]} Kf7 {[%emt 0:00:29]} 33. Ra8 {[%emt 0:00:13]} Nb4 {[%emt 0:01:21]} 34. Rc8 {[%emt 0:00:53]} Ke6 {[%emt 0:00:36]} 35. Rxc5 {[%emt 0:01:23]} Kxd6 {[%emt 0:00:06]} 36. Rxf5 {[%emt 0:01:32]} Rc5 {[%emt 0:00:43]} 37. Rf3 {[%emt 0:00:58]} Kd5 {[%emt 0:00:40]} 38. Kf2 {[%emt 0:00:40]} Kd4 {[%emt 0:00:40]} 39. g3 {[%emt 0:01:05]} Nd3+ {[%emt 0:00:44]} 40. Ke2 {[%emt 0:00:19]} Rc3 {[%emt 0:00:17]} 41. Rf6 {[%emt 0:31:56]} Nc1+ {[%emt 0:31:13]} 42. Kd1 {[%emt 0:02:12]} a5 {[%emt 0:02:09]} 43. Rf5 {[%emt 0:00:45]} Nxb3 {[%emt 0:00:40]} 44. Rxg5 {[%emt 0:00:17]} Ke3 {[%emt 0:00:00]} 45. Re5+ {[%emt 0:00:00]} Kf3 {[%emt 0:00:00]} 46. Rf5+ {[%emt 0:00:00]} Kxg3 0-1